Cogmind - Beta 13 @@@ ROGUE MODE // 2024.04.13 @ 14:45:23 Player: iwantthegold Result: Self-destructed Performance ------------- Evolutions (5) 2500 Regions Visited (9) 1800 Robots Destroyed (27) 135 Value Destroyed (1127) 1127 Prototype IDs (2) 40 Alien Tech Used (0) 0 Bonus (34) 34 TOTAL SCORE: 5636 Bonus ------- High Alert Combat Kills 34 Cogmind --------- Core Integrity 692/1000 Matter 16/300 Energy 310/310 System Corruption 5% Temperature Warm (172) Movement Walking (120) Location -5/Extension Parts ------- > --- POWER (1) -------- Fission Core > --- PROPULSION (6) --- Flexi-carbon Leg Faulty Cooled VTOL Module > --- UTILITY (7) ------ Targeting Computer > --- WEAPON (3) ------- (None) > --- INVENTORY (5) ---- Neutrino Core Peak State ------------ > --- POWER ------------ Improved Ion Engine > --- PROPULSION ------- Advanced Treads Advanced Treads Advanced Treads Advanced Treads > --- UTILITY ---------- Large Storage Unit Signal Interpreter Seismic Detector Targeting Computer Improved Power Shielding > --- WEAPON ----------- Gatling Laser Particle Cannon Gauss Rifle > --- INVENTORY -------- Light Ion Engine Wheel Airjet Airjet Structural Scanner Improved Terrain Scan Processor Improved Power Shielding Improved Power Shielding Hacking Suite Heavy Laser Mini Grenade Launcher Mini Grenade Launcher Mini Grenade Launcher Mini Grenade Launcher Heavy Missile Launcher [Rating: 34] Favorites ----------- Power Light Ion Engine Engine Light Ion Engine Power Core Fission Core Propulsion Compact Wheel Treads Advanced Treads Leg Flexi-carbon Leg Wheel Compact Wheel Hover Unit Airjet Flight Unit Cooled VTOL Module Utility Signal Interpreter Device Seismic Detector Storage High-capacity Storage Unit Processor Signal Interpreter Protection Improved Power Shielding Weapon Gauss Cannon Energy Gun Medium Laser Energy Cannon Particle Cannon Ballistic Gun Light Assault Rifle Ballistic Cannon Gauss Cannon Launcher Mini Grenade Launcher Build | -11 -10 -9 -8 -7 -7 -7 -6 -5 -5 ------- Run | Yrd Mat Mat Mat Fac Was Fac Fac Fac Ext Slots Evolved 10 | . . 2 2 2 . . 2 2 . Power . | . . . . . . . . . . Propulsion 4 | . . 1 . 1 . . 1 1 . Utility 5 | . . 1 1 1 . . 1 1 . Weapon 1 | . . . 1 . . . . . . Parts Attached 62 | 6 4 3 9 14 . 14 2 . 10 Power 7 | 1 1 . 1 . . 1 1 . 2 Engine 6 | 1 1 . 1 . . 1 1 . 1 Core 1 | . . . . . . . . . 1 Reactor . | . . . . . . . . . . Propulsion 24 | 2 . 1 3 8 . 6 1 . 3 Treads 7 | . . . 3 4 . . . . . Leg 1 | . . . . . . . . . 1 Wheel 10 | 2 . 1 . . . 6 1 . . Hover 4 | . . . . 4 . . . . . Flight 2 | . . . . . . . . . 2 Utility 13 | 1 3 1 1 3 . 3 . . 1 Device 4 | . 1 1 1 . . 1 . . . Storage 4 | 1 1 . . 1 . 1 . . . Processor 4 | . 1 . . 1 . 1 . . 1 Hackware . | . . . . . . . . . . Protection 1 | . . . . 1 . . . . . Artifact . | . . . . . . . . . . Weapon 18 | 2 . 1 4 3 . 4 . . 4 Energy Gun 4 | 1 . 1 1 1 . . . . . Energy Cannon 1 | . . . 1 . . . . . . Ballistic Gun 5 | 1 . . 1 1 . 1 . . 1 Ballistic Cannon 4 | . . . . . . 1 . . 3 Launcher 4 | . . . 1 1 . 2 . . . Special Weapon . | . . . . . . . . . . Impact Weapon . | . . . . . . . . . . Slashing Weapon . | . . . . . . . . . . Piercing Weapon . | . . . . . . . . . . Special Melee Weapon . | . . . . . . . . . . Unidentified Prototypes 2 | . . 1 . . . . . . 1 Parts Lost 29 | . . . 6 3 3 8 . . 9 Power 5 | . . . 1 . 1 1 . . 2 Propulsion 9 | . . . 2 2 . 3 . . 2 Utility 3 | . . . . . 1 1 . . 1 Weapon 12 | . . . 3 1 1 3 . . 4 Highest Loss Streak 6 | . . . 6 3 3 5 . . 4 To Critical Strikes . | . . . . . . . . . . Average Slot Usage (%) 59 | . 99 90 98 96 38 37 23 23 34 Engine 6 | . 14 11 8 7 1 3 5 5 1 Treads 4 | . . . 16 21 10 . . . . Wheel 10 | . 28 24 9 . . 12 5 5 . Device 5 | . 3 9 18 14 2 1 . . . Storage 5 | . 14 11 9 7 2 5 . . . Processor 7 | . 10 11 9 13 5 5 6 5 4 Energy Gun 4 | . 14 11 8 7 2 . . . . Energy Cannon 1 | . . . 6 7 2 . . . . Ballistic Gun 5 | . 14 11 11 5 1 3 . . 2 Ballistic Cannon 2 | . . . . . . . 6 5 10 Naked Turns . | . . . . . . . . . . Heaviest Build 58 | 11 48 50 58 58 42 13 10 10 35 Greatest Support 88 | 32 32 44 66 88 88 50 10 10 20 Greatest Overweight (x) 11 | . 1 1 1 2 . 2 3 . 11 Average Overweight (x) . | . . 1 . . . . . . 1 Largest Inventory Capacity 20 | 8 20 20 20 20 15 5 5 5 5 Average Capacity 10 | 7 14 20 20 15 8 5 5 5 5 Most Carried 20 | 6 14 20 20 20 15 5 5 5 5 Average Carried 8 | 3 8 17 17 13 8 4 4 5 1 Final Capacity 20 | 8 20 20 20 15 5 5 5 5 5 Final Carried 20 | 6 14 20 19 15 5 4 5 5 1 Class Distribution -------------------- 65% | Mutant 16% | Skirmisher 10% | Gunner 6% | Scavenger-Gunner Dominant Class ---------------- Mutant | -10/Materials Mutant | -9/Materials Skirmisher | -8/Materials Gunner | -7/Factory Mutant | -7/Waste Mutant | -7/Factory Mutant | -6/Factory Mutant | -5/Factory Scavenger-Gunner | -5/Extension Resources | -11 -10 -9 -8 -7 -7 -7 -6 -5 -5 ----------- Run | Yrd Mat Mat Mat Fac Was Fac Fac Fac Ext Matter Collected 885 | 204 69 . 189 90 . 47 20 . 266 Remotely . | . . . . . . . . . . Salvage Created 811 | . 103 . 429 111 . 47 9 . 112 Parts 52 | . 13 . 28 5 . . 1 . 5 Haulers Intercepted . | . . . . . . . . . . Recyclers Shooed 2 | . . 2 . . . . . . . Parts Field Recycled . | . . . . . . . . . . Retrieved Matter . | . . . . . . . . . . Parts Self-Destructed . | . . . . . . . . . . Prevented . | . . . . . . . . . . Kills | -11 -10 -9 -8 -7 -7 -7 -6 -5 -5 ------- Run | Yrd Mat Mat Mat Fac Was Fac Fac Fac Ext Combat Hostiles Destroyed 24 | . 5 . 11 3 . 2 . . 3 Guns 15 | . 5 . 7 2 . 1 . . . Cannons 3 | . . . . . . . . . 3 AOE 6 | . . . 4 1 . 1 . . . Classes Destroyed 7 | . 2 . 2 1 . 1 . . 1 Worker 2 | . . . 1 . . . 1 . . Tunneler 1 | . . . 1 . . . . . . Swarmer 6 | . 3 . 3 . . . . . . Grunt 12 | . 2 . 8 2 . . . . . Duelist 1 | . . . . 1 . . . . . Sentry 3 | . . . . . . 2 . . 1 Hunter 2 | . . . . . . . . . 2 Best Kill Streak 10 | . 3 . 10 3 . 2 1 . 2 Combat Bots Only 9 | . 3 . 9 3 . 2 . . 2 Max Kills in Single Turn 3 | . 1 . 3 1 . 1 1 . 1 Gunslinging . | . . . . . . . . . . Exploded 2 | . . . 2 1 . 1 . . . Melee . | . . . . . . . . . . Uniques/NPCs Destroyed . | . . . . . . . . . . Combat | -11 -10 -9 -8 -7 -7 -7 -6 -5 -5 -------- Run | Yrd Mat Mat Mat Fac Was Fac Fac Fac Ext Hostile Shots Fired 294 | . 18 . 37 12 4 149 1 2 71 Missed 89 | . 4 . 8 4 1 59 . . 13 Damage Taken 3396 | . 139 . 715 264 135 864 20 43 1216 Core 777 | . 28 . 167 . 86 188 . . 308 Absorbed by Shields 245 | . . . . . . . . . 245 Core Remaining (%) 86 | 100 88 100 69 . . 60 100 . . Volleys Fired 66 | . 13 8 13 6 . 10 2 . 14 Largest 3 | . 2 2 3 3 . 2 1 . 3 Hottest 178 | . 70 70 141 178 . 55 48 . 149 Shots Fired 144 | . 26 16 36 18 . 14 2 . 32 Gun 87 | . 26 16 29 6 . 7 . . 3 Cannon 42 | . . . 5 6 . . 2 . 29 Launcher 15 | . . . 2 6 . 7 . . . Special . | . . . . . . . . . . Kinetic 80 | . 13 8 18 . . 7 2 . 32 Thermal 41 | . 13 6 10 12 . . . . . Explosive 15 | . . . 2 6 . 7 . . . Electromagnetic 8 | . . 2 6 . . . . . . Robot Hit Streak 9 | . 7 4 9 4 . 2 1 . 4 Robot Miss Streak 7 | . 1 7 2 2 . 3 1 . 6 Penetration Max 1 | . . . . . . . 1 . . Secondary Targets . | . . . . . . . . . . Shots Hit Robots 82 | . 17 7 19 9 . 10 1 . 19 Core Hits 66 | . 7 1 26 8 . 8 1 . 15 Critical Kills . | . . . . . . . . . . Critical Parts Destroyed . | . . . . . . . . . . Critical Strikes 4 | . . 1 . . . . 1 . 2 Burn 1 | . . 1 . . . . . . . Blast 3 | . . . . . . . 1 . 2 Melee Attacks . | . . . . . . . . . . Impact . | . . . . . . . . . . Slashing . | . . . . . . . . . . Piercing . | . . . . . . . . . . Sneak Attacks . | . . . . . . . . . . Combat Hostiles . | . . . . . . . . . . Follow-up Attacks . | . . . . . . . . . . Damage Inflicted 2049 | . 185 84 828 317 . 222 55 . 358 Guns 727 | . 185 84 267 78 . 87 . . 26 Cannons 448 | . . . 41 20 . . 55 . 332 Explosions 874 | . . . 520 219 . 135 . . . Melee . | . . . . . . . . . . Ramming . | . . . . . . . . . . Kinetic 708 | . 51 35 122 . . 87 55 . 358 Thermal 678 | . 134 26 420 98 . . . . . Explosive 545 | . . . 191 219 . 135 . . . Electromagnetic 118 | . . 23 95 . . . . . . Impact . | . . . . . . . . . . Slashing . | . . . . . . . . . . Piercing . | . . . . . . . . . . Highest Corruption 14 | . . . . . 10 14 2 1 5 Average Corruption 5 | . . . . . 10 10 2 1 3 Corruption Purged . | . . . . . . . . . . Corruption Blocked . | . . . . . . . . . . Effects 32 | . . . . . 3 20 4 . 5 Message Errors 15 | . . . . . . 11 1 . 3 Matter Fused 3 | . . . . . . 2 1 . . Heat Flow Errors 3 | . . . . . 2 . . . 1 Energy Discharges 3 | . . . . . . 2 . . 1 Parts Rejected 1 | . . . . . . 1 . . . Data Loss (minor) 4 | . . . . . . 3 1 . . Data Loss (major) 1 | . . . . . . . 1 . . Alerts 1 | . . . . . . 1 . . . Misdirections 1 | . . . . . 1 . . . . Overload Shots . | . . . . . . . . . . Overflow Damage 74 | . . . 70 4 . . . . . Projectiles . | . . . . . . . . . . Explosions 74 | . . . 70 4 . . . . . Melee . | . . . . . . . . . . Knockbacks 8 | . . . . . . . 1 . 7 Impact . | . . . . . . . . . . Kinetic 8 | . . . . . . . 1 . 7 Secondary . | . . . . . . . . . . Self-Inflicted Damage 380 | . . . 244 85 . 51 . . . Shots 7 | . . . 4 2 . 1 . . . Rammed . | . . . . . . . . . . Targets Rammed . | . . . . . . . . . . Kicked . | . . . . . . . . . . Crushed . | . . . . . . . . . . Highest Temperature 480 | . 174 25 150 480 248 21 . . 206 Average Temperature 96 | . 75 12 56 226 112 8 . . 103 Received Heat Transfer 621 | . 54 . 234 45 . 144 9 27 108 Effects 4 | . . . . 4 . . . . . Shutdowns 2 | . . . . 2 . . . . . Energy Bleed 1 | . . . . 1 . . . . . Damage (major) 1 | . . . . 1 . . . . . Siege Activations . | . . . . . . . . . . Robots Corrupted . | . . . . . . . . . . Combat Hostiles . | . . . . . . . . . . Parts Fried . | . . . . . . . . . . Impact Corruptions . | . . . . . . . . . . Robots Melted . | . . . . . . . . . . Combat Hostiles . | . . . . . . . . . . Parts Melted . | . . . . . . . . . . Heat Transferred 1413 | . 407 148 622 236 . . . . . Parts Sabotaged . | . . . . . . . . . . Parts Stolen . | . . . . . . . . . . Parts Stripped . | . . . . . . . . . . Power Chain Reactions 2 | . . . 2 . . . . . . Alert | -11 -10 -9 -8 -7 -7 -7 -6 -5 -5 ------- Run | Yrd Mat Mat Mat Fac Was Fac Fac Fac Ext Peak Influence 509 | . 146 76 509 323 113 180 50 30 62 Initial 231 | . . 61 31 231 113 79 . . 14 Average 115 | . 98 61 351 302 106 78 22 7 36 Maximum Alert Level 2 | . . . 2 1 . . . . . Low Security (%) 82 | 100 100 100 31 . 100 100 100 100 100 Level 1 8 | . . . 1 100 . . . . . Level 2 8 | . . . 67 . . . . . . Level 3 . | . . . . . . . . . . Level 4 . | . . . . . . . . . . Level 5 . | . . . . . . . . . . High Security . | . . . . . . . . . . Max Security . | . . . . . . . . . . Squads Dispatched 7 | . 1 . 1 . . 1 1 1 2 Investigation 4 | . 1 . . . . . 1 1 1 Extermination 1 | . . . . . . 1 . . . Reinforcement 1 | . . . . . . . . . 1 Assault 1 | . . . 1 . . . . . . Garrison . | . . . . . . . . . . Intercept . | . . . . . . . . . . Searches Triggered . | . . . . . . . . . . Construction Impeded 1 | . . . . . . . . . 1 Haulers Reinforced . | . . . . . . . . . . Active Scanning Responses . | . . . . . . . . . . Cargo Convoy Interrupts . | . . . . . . . . . . Stealth | -11 -10 -9 -8 -7 -7 -7 -6 -5 -5 --------- Run | Yrd Mat Mat Mat Fac Was Fac Fac Fac Ext Distress Signals 1 | . . 1 . . . . . . . Communications Jammed . | . . . . . . . . . . Distress Signals . | . . . . . . . . . . Times Spotted 42 | . 6 2 12 3 6 3 3 1 6 Peak Tracking Total 9 | . 4 2 9 3 6 2 3 1 3 Tactical Retreats 3 | . . . 1 . . . 1 1 . Traps | -11 -10 -9 -8 -7 -7 -7 -6 -5 -5 ------- Run | Yrd Mat Mat Mat Fac Was Fac Fac Fac Ext Traps Triggered 3 | . 1 . . 1 . . 1 . . Indirectly . | . . . . . . . . . . Trap Hack Attempts . | . . . . . . . . . . Triggered . | . . . . . . . . . . Disarmed . | . . . . . . . . . . Reprogrammed . | . . . . . . . . . . Reused . | . . . . . . . . . . Traps Extracted . | . . . . . . . . . . Installed . | . . . . . . . . . . Triggered . | . . . . . . . . . . Machines | -11 -10 -9 -8 -7 -7 -7 -6 -5 -5 ---------- Run | Yrd Mat Mat Mat Fac Was Fac Fac Fac Ext Machines Disabled 7 | . . . 4 2 . 1 . . . Max in Single Turn 2 | . . . 2 2 . 1 . . . Garrison Access 2 | . . . 1 1 . . . . . Machines Repaired . | . . . . . . . . . . Machines Dismantled . | . . . . . . . . . . Machines Sabotaged . | . . . . . . . . . . Overloaded Fab Kills . | . . . . . . . . . . Hacking | -11 -10 -9 -8 -7 -7 -7 -6 -5 -5 --------- Run | Yrd Mat Mat Mat Fac Was Fac Fac Fac Ext Machines Accessed 19 | . 3 2 2 1 . 1 4 2 4 Terminals 13 | . 2 1 2 . . 1 2 1 4 Fabricators 1 | . . . . . . . . 1 . Repair Stations 1 | . . . . . . . 1 . . Recycling Units 2 | . 1 . . . . . 1 . . Scanalyzers 1 | . . 1 . . . . . . . Garrison Access 1 | . . . . 1 . . . . . Total Hacks 40 | . 6 5 7 3 . 1 7 3 8 Successful 18 | . 5 3 3 1 . . 3 1 2 Failed 22 | . 1 2 4 2 . 1 4 2 6 Catastrophic 3 | . 1 1 . . . . . 1 . Database Lockouts . | . . . . . . . . . . Manual 19 | . 3 3 6 . . . . 2 5 Terminals 28 | . 5 3 7 . . 1 2 2 8 Fabricators 1 | . . . . . . . . 1 . Repair Stations 2 | . . . . . . . 2 . . Recycling Units 4 | . 1 . . . . . 3 . . Scanalyzers 2 | . . 2 . . . . . . . Garrison Access 3 | . . . . 3 . . . . . Terminal Hacks 8 | . 3 . 2 . . . 2 . 1 Record 2 | . 2 . . . . . . . . Open Door 1 | . . . . . . . . . 1 Open DSF 2 | . . . . . . . 2 . . Level Access Points 1 | . . . 1 . . . . . . Alert Level 1 | . . . 1 . . . . . . Zone Layout 1 | . 1 . . . . . . . . Fabricator Hacks 1 | . . . . . . . . 1 . Network Status 1 | . . . . . . . . 1 . Repair Station Hacks . | . . . . . . . . . . Recycling Unit Hacks 2 | . 1 . . . . . 1 . . Process 1 | . 1 . . . . . . . . Retrieve Matter 1 | . . . . . . . 1 . . Scanalyzer 2 | . . 2 . . . . . . . Insert Component 1 | . . 1 . . . . . . . Analyze 1 | . . 1 . . . . . . . Garrison Access Hacks 1 | . . . . 1 . . . . . Seal Access 1 | . . . . 1 . . . . . Unauthorized Hacks 4 | . 1 1 1 . . . . . 1 Terminals 4 | . 1 1 1 . . . . . 1 Botnet 4 | . 1 1 1 . . . . . 1 Fabricators . | . . . . . . . . . . Repair Stations . | . . . . . . . . . . Recycling Units . | . . . . . . . . . . Scanalyzers . | . . . . . . . . . . Garrison Access . | . . . . . . . . . . Data Cores Recovered . | . . . . . . . . . . Used . | . . . . . . . . . . Hacking Detections 14 | . 3 2 2 . . . 3 1 3 Full Trace Events 4 | . . . 1 . . . 1 1 1 Feedback Events 1 | . . . . . . . . 1 . Corruption 1 | . . . . . . . . 1 . Feedback Blocked . | . . . . . . . . . . Robot Schematics Acquired . | . . . . . . . . . . Robots Built . | . . . . . . . . . . Authchips . | . . . . . . . . . . Time . | . . . . . . . . . . Total Robot Build Rating . | . . . . . . . . . . Part Schematics Acquired 1 | . . 1 . . . . . . . Parts Built . | . . . . . . . . . . Authchips . | . . . . . . . . . . Time . | . . . . . . . . . . Total Part Build Rating . | . . . . . . . . . . Parts Repaired . | . . . . . . . . . . Time . | . . . . . . . . . . Parts Recycled . | . . . . . . . . . . Recycled Matter . | . . . . . . . . . . Retrieved Matter . | . . . . . . . . . . Retrieved Components . | . . . . . . . . . . Parts Scanalyzed 1 | . . 1 . . . . . . . Part Schematics Acquired 1 | . . 1 . . . . . . . Parts Damaged . | . . . . . . . . . . Bothacking | -11 -10 -9 -8 -7 -7 -7 -6 -5 -5 ------------ Run | Yrd Mat Mat Mat Fac Was Fac Fac Fac Ext Used RIF Installer . | . . . . . . . . . . Robots Hacked . | . . . . . . . . . . Non-combat . | . . . . . . . . . . Combat . | . . . . . . . . . . Robot Hacks Applied . | . . . . . . . . . . Relay Couplers Released 2 | . . . 2 . . . . . . Machine Destruction 2 | . . . 2 . . . . . . Fabnet Peak Effective % . | . . . . . . . . . . Robots Rewired . | . . . . . . . . . . Allies Hacked . | . . . . . . . . . . Hacks Repelled . | . . . . . . . . . . Allies | -11 -10 -9 -8 -7 -7 -7 -6 -5 -5 -------- Run | Yrd Mat Mat Mat Fac Was Fac Fac Fac Ext Total Allies 2 | . . . . . . . . . 2 Largest Group 2 | . . . . . . . . . 2 Highest-Rated Group 64 | . . . . . . . . . 64 Highest-Rated Ally 39 | . . . . . . . . . 39 Total Orders . | . . . . . . . . . . Ally Attacks 9 | . . . . . . . . . 9 Total Damage 154 | . . . . . . . . . 154 Kills . | . . . . . . . . . . Allies Corrupted . | . . . . . . . . . . Allies Melted . | . . . . . . . . . . Intel | -11 -10 -9 -8 -7 -7 -7 -6 -5 -5 ------- Run | Yrd Mat Mat Mat Fac Was Fac Fac Fac Ext Robot Analysis Total . | . . . . . . . . . . Derelict Logs Recovered . | . . . . . . . . . . Drone Launches . | . . . . . . . . . . Drone Recoveries . | . . . . . . . . . . Exploration | -11 -10 -9 -8 -7 -7 -7 -6 -5 -5 ------------- Run | Yrd Mat Mat Mat Fac Was Fac Fac Fac Ext Turns Passed 3061 | 46 339 305 390 269 110 583 455 138 426 Spaces Moved 2444 | 33 227 228 215 152 163 553 503 173 197 Core 210 | 4 . . . . 136 11 44 . 15 Treads 310 | . . . 154 129 27 . . . . Legs 112 | . . . . . . . . . 112 Wheels 1784 | 29 227 228 61 . . 542 459 173 65 Hover 23 | . . . . 23 . . . . . Flight 5 | . . . . . . . . . 5 Fastest Speed 50 | 50 100 111 111 108 50 50 80 80 80 Average Speed 105 | 93 106 113 135 143 65 90 86 80 178 Slowest Speed 600 | 100 115 115 145 176 145 150 200 80 600 Overloaded Moves . | . . . . . . . . . . Propulsion Burnouts . | . . . . . . . . . . Robots Hopped . | . . . . . . . . . . Cave-ins Triggered 1 | . . . . . . . . . 1 Exploration Rate (%) 23 | 3 38 25 25 3 80 15 17 6 24 Regions Visited 9 Branch Regions 1 Pre-discovered Areas . | . . . . . . . . . . Known Exits Taken 3 | . 1 1 1 . . . . . . Unknown Exits Taken 4 | 1 . . . . . 1 1 1 . Scrap Searched . | . . . . . . . . . . Spaces Dug . | . . . . . . . . . . Terrain Destroyed 147 | . . . 48 44 . 45 . . 10 Melee . | . . . . . . . . . . Projectile 14 | . . . 1 3 . . . . 10 AOE 133 | . . . 47 41 . 45 . . . Terrain Rammed . | . . . . . . . . . . Walls Destroyed . | . . . . . . . . . . Machines Disabled . | . . . . . . . . . . Actions | -11 -10 -9 -8 -7 -7 -7 -6 -5 -5 --------- Run | Yrd Mat Mat Mat Fac Was Fac Fac Fac Ext Total 2810 | 45 301 263 288 188 167 619 523 172 244 Wait 153 | . 47 . 41 . . 32 12 . 21 Move 2435 | 32 226 227 214 152 162 552 502 172 196 Hop . | . . . . . . . . . . Pick Up 62 | 7 9 16 9 10 . 6 3 . 2 Fast Attach 20 | 5 1 1 . 1 . 7 2 . 3 Attach 27 | 1 . 1 8 4 . 7 . . 6 Detach 1 | . . . . . . 1 . . . Swap 15 | . 3 1 1 9 . . . . 1 Drop 30 | . 2 9 2 6 5 4 2 . . Fire 66 | . 13 8 13 6 . 10 2 . 14 Melee . | . . . . . . . . . . Ram . | . . . . . . . . . . Kick . | . . . . . . . . . . Crush . | . . . . . . . . . . Escape Stasis 1 | . . . . . . . . . 1 Rewire . | . . . . . . . . . . Trap . | . . . . . . . . . . Miscellaneous . | . . . . . . . . . . Route ------- -11/Scrapyard -10/Materials -9/Materials -8/Materials (discovered 3 exits: *Fac x3) -7/Factory -7/Waste -7/Factory -6/Factory -5/Factory -5/Extension History --------- Turn | Location | Event 22 | -11/Scrapyard | Discovered new exit (range 15) 47 | -11/Scrapyard | Entered Materials 329 | -10/Materials | Build established: Mutant 335 | -10/Materials | Discovered new exit (range 16) 385 | -10/Materials | Identified exit to Materials 386 | -10/Materials | Entered another Materials area 386 | -9/Materials | Evolved 2 slots: Propulsion x1, Utility x1 667 | -9/Materials | Discovered new exit (range 4) 670 | -9/Materials | Identified exit to Materials 691 | -9/Materials | Entered another Materials area 691 | -8/Materials | Evolved 2 slots: Utility x1, Weapon x1 736 | -8/Materials | Identified exit to Factory 854 | -8/Materials | Lost 6 parts (1p2n3w) 866 | -8/Materials | Destroyed 9 combat bots 985 | -8/Materials | Build established: Skirmisher 1081 | -8/Materials | Entered Factory 1081 | -7/Factory | Evolved 2 slots: Propulsion x1, Utility x1 1178 | -7/Factory | Lost 3 parts (2n1w) 1350 | -7/Factory | Sucked down chute 1350 | -7/Factory | Entered Waste 1364 | -7/Waste | Spotted C-40 Crusher 1365 | -7/Waste | EMP discharged 1365 | -7/Waste | System corruption reached 10% 1379 | -7/Waste | Spotted C-40 Crusher 1379 | -7/Waste | Spotted C-40 Crusher 1389 | -7/Waste | Crushed by Compactor (1 part destroyed, 2 dropped) 1392 | -7/Waste | Crushed by Compactor (1 part destroyed, 2 dropped) 1392 | -7/Waste | Crushed by Compactor (1 part destroyed) 1393 | -7/Waste | Spotted C-40 Crusher 1395 | -7/Waste | Spotted C-40 Crusher 1423 | -7/Waste | Lost 3 parts (1p1u1w) 1433 | -7/Waste | Spotted C-40 Crusher 1451 | -7/Waste | Discovered new exit (range 11) 1460 | -7/Waste | Entered Factory 1678 | -7/Factory | Build established: Mutant 1771 | -7/Factory | Lost 3 parts (1n2w) 2027 | -7/Factory | Discovered new exit (range 16) 2043 | -7/Factory | Entered another Factory area 2043 | -6/Factory | Evolved 2 slots: Propulsion x1, Utility x1 2074 | -6/Factory | Lost 5 parts (1p2n1u1w) 2385 | -6/Factory | Discovered new exit (range 15) 2498 | -6/Factory | Entered another Factory area 2498 | -5/Factory | Evolved 2 slots: Propulsion x1, Utility x1 2623 | -5/Factory | Discovered new exit (range 16) 2636 | -5/Factory | Entered Extension 2673 | -5/Extension | Rescued a captive Derelict 2673 | -5/Extension | Rescued a captive Derelict 2776 | -5/Extension | Crushed by falling debris 3062 | -5/Extension | Self-destructed Last Messages --------------- 02992_ Connecting with Terminal... 02992_ ALERT: Suspicious activity at Terminal E005. Dispatching Investigation squad. 03016_ Slug penetrates Wall. 03016_ Slug penetrates G-50 Soldier. 03016_ G-50 Soldier Adv. Heat Sink blasted off. 03016_ G-50 Soldier knocked back. 03019_ Slug penetrates G-50 Soldier. 03019_ G-50 Soldier knocked back. 03026_ Hvy. Flak Cannon destroyed. 03026_ Penetrated by Slug. 03039_ Gauss Cannon destroyed. 03042_ System corrupted: Energy discharge (-114). 03042_ Penetrated by Slug. 03042_ Slug penetrates Wall. 03045_ KE Penetrator destroyed. 03045_ Penetrated by Slug. 03059_ System corrupted: Heat flow error (+209). 03059_ Slug penetrates Wall. 03060_ Gauss Cannon destroyed. Map ----- +----------------------------------------------------+ | | | | | | | | | | | | | | | | | | | | | | | | | | | | | | | | | | | | | | | | | | | #????????????????????????????????????????????????? | | #????????????????????#######?????????????????????? | | #????????????????????# #???????###???????????? | | #????????????????????# Y#########"#########???? | | #????????????????????# @ gg | | #????????????????????# ######### #########???? | | #??????????#########?# #???????# #???????????# | | #??????????# #?#######?????###!###??????? # | | #??????????# ############### % #????? + | | ???????????# " #### ]]] # | | ???????????# "T / # | | ???????????# #### # | | ############ ############### #?????##### | | #?????????????#######?????????? | | ######## ####?????????????????????????????? | | #?????#T ???????????????????????????????? | | #?????##""##??????????????????????????????? | | ########?????????????????????????????????????????? | | ?????????????????????????????????????????????????? | | ?????????????????????????????????????????????????? | | ?????????????????????????????????????????????????? | | ?????????????????????????????????????????????????? | | ?????????????????????????????????????????????????? | | ?????????????????????????????????????????????????? | | ?????????????????????????????????????????????????? | | ?????????????????????????????????????????????????? | | ?????????????????????????????????????????????????? | | ?????????????????????????????????????????????????? | | ?????????????????????????????????????????????????? | +----------------------------------------------------+ Best States ------------- Heat Dissipation 40 Energy Generation 18 Energy Capacity 310 Matter Stores 300 Matter Capacity 350 Sight Range 20 Terrain Scan Density 10 Power Shielding 66 Evasion (%) 55 Targeting Accuracy 5 Recoil Reduction 4 Item Schematics ----------------- Mni. Grenade Launcher | -9/Materials | Scanalyzed Robot Schematics ------------------ None Fabricated ------------ Nothing Alien Tech Used ----------------- None Achievements -------------- None Challenges ------------ None Game ------ Seed CarbideImpactFalx Manual? 0 Play Time 00:42:46 Cumulative 20.1 hours Start 2024.04.13 @ 14:05:23 End 2024.04.13 @ 14:45:23 Sessions 1 Manual Loads 0 Difficulty Rogue Special Mode None Game No. 24 Rogue 24 Adventurer 0 Explorer 0 Win Type - Total 0 Types 0/0/0/0/0/0/0/0/0 Lore% 7 Gallery% 22 Achievement% 16 Wizard Run 0 Options --------- Layout 1 ASCII 0 Keyboard 0 Movement Mouse Keybinds 0 Fullscreen 1 Font 18/SmallcapsGlow Map View 54x44 Zoom Use 0% Tactical HUD 1 Map Filters NONE Filters NONE Steam 0 RUN: b664b692-2a5b-4463-9a59-aeb52b3d15bd